[Event "*** Titled Tuesday Blitz"]
[Site "Chess.com"]
[Date "2020.04.28"]
[Round "5"]
[White "tufferguy"]
[Black "IMinTheWings"]
[Result "1-0"]
[WhiteElo "2382"]
[BlackElo "2212"]
[TimeControl "180+1"]
[EndTime "10:57:07 PDT"]
[Termination "tufferguy won by checkmate"]

1. e4 {[%clk 0:03:00.9]} 1... g6 {[%clk 0:02:55.4]} 2. d4 {[%clk 0:03:00.1]}
2... Bg7 {[%clk 0:02:56.3]} 3. Nc3 {[%clk 0:02:57.2]} 3... c6 {[%clk 0:02:56.3]}
4. Nf3 {[%clk 0:02:50.5]} 4... d5 {[%clk 0:02:56]} 5. e5 {[%clk 0:02:30.5]} 5...
Nh6 {[%clk 0:02:54.7]} 6. Bd3 {[%clk 0:02:26.2]} 6... O-O {[%clk 0:02:53.7]} 7.
h3 {[%clk 0:02:17.6]} 7... f6 {[%clk 0:02:52.7]} 8. exf6 {[%clk 0:02:15]} 8...
exf6 {[%clk 0:02:51.4]} 9. O-O {[%clk 0:02:13.3]} 9... Qd6 {[%clk 0:02:21.6]}
10. Be3 {[%clk 0:02:01.8]} 10... Nf5 {[%clk 0:02:17.7]} 11. Qd2 {[%clk
0:01:57.9]} 11... Nxe3 {[%clk 0:02:17.3]} 12. Qxe3 {[%clk 0:01:56.6]} 12... Nd7
{[%clk 0:02:12.4]} 13. Rae1 {[%clk 0:01:54.2]} 13... Nb6 {[%clk 0:02:11.5]} 14.
Qe7 {[%clk 0:01:52.3]} 14... Qxe7 {[%clk 0:02:07.8]} 15. Rxe7 {[%clk 0:01:53.2]}
15... Bd7 {[%clk 0:02:08.1]} 16. a4 {[%clk 0:01:37.2]} 16... Rfe8 {[%clk
0:02:04.8]} 17. Rfe1 {[%clk 0:01:34.1]} 17... Bf8 {[%clk 0:01:59.3]} 18. Rxe8
{[%clk 0:01:27.1]} 18... Rxe8 {[%clk 0:01:59.3]} 19. Rxe8 {[%clk 0:01:18.9]}
19... Bxe8 {[%clk 0:01:59.3]} 20. a5 {[%clk 0:01:16.4]} 20... Nc8 {[%clk
0:01:54.2]} 21. Na4 {[%clk 0:01:14.5]} 21... Bb4 {[%clk 0:01:43.6]} 22. Nc5
{[%clk 0:01:09.5]} 22... Nd6 {[%clk 0:01:24.8]} 23. a6 {[%clk 0:00:44.4]} 23...
b6 {[%clk 0:01:24.9]} 24. Ne6 {[%clk 0:00:40.6]} 24... Bd7 {[%clk 0:01:06.5]}
25. Nf4 {[%clk 0:00:34.7]} 25... Ne8 {[%clk 0:00:55.3]} 26. c4 {[%clk
0:00:33.4]} 26... Bd6 {[%clk 0:00:49.7]} 27. Ne2 {[%clk 0:00:27.5]} 27... dxc4
{[%clk 0:00:38.6]} 28. Bxc4+ {[%clk 0:00:28.4]} 28... Kf8 {[%clk 0:00:36.1]} 29.
Nc3 {[%clk 0:00:28.5]} 29... Nc7 {[%clk 0:00:35]} 30. Ne4 {[%clk 0:00:28.3]}
30... Be7 {[%clk 0:00:34]} 31. h4 {[%clk 0:00:18.6]} 31... Bc8 {[%clk
0:00:33.7]} 32. h5 {[%clk 0:00:15]} 32... g5 {[%clk 0:00:32.4]} 33. Bd3 {[%clk
0:00:09.6]} 33... Bxa6 {[%clk 0:00:31]} 34. Bc2 {[%clk 0:00:09.8]} 34... Nd5
{[%clk 0:00:29.5]} 35. Ng3 {[%clk 0:00:09.7]} 35... Kg8 {[%clk 0:00:25.6]} 36.
Nf5 {[%clk 0:00:09.2]} 36... Bf8 {[%clk 0:00:26]} 37. Nd2 {[%clk 0:00:07.4]}
37... Bc8 {[%clk 0:00:24.9]} 38. g4 {[%clk 0:00:05.5]} 38... Bb4 {[%clk
0:00:17.2]} 39. Ne4 {[%clk 0:00:05.1]} 39... Kf8 {[%clk 0:00:16.1]} 40. Neg3
{[%clk 0:00:04.5]} 40... Nf4 {[%clk 0:00:12.6]} 41. Bb3 {[%clk 0:00:04.5]} 41...
Be6 {[%clk 0:00:09.3]} 42. Bc2 {[%clk 0:00:03.4]} 42... Kf7 {[%clk 0:00:05.8]}
43. Ne3 {[%clk 0:00:03.5]} 43... h6 {[%clk 0:00:05.1]} 44. Kf1 {[%clk
0:00:04.4]} 44... Bd2 {[%clk 0:00:04.2]} 45. Nef5 {[%clk 0:00:04]} 45... Bc1
{[%clk 0:00:04.2]} 46. Nxh6+ {[%clk 0:00:04.1]} 46... Kg7 {[%clk 0:00:04.6]} 47.
Nhf5+ {[%clk 0:00:05]} 47... Bxf5 {[%clk 0:00:05.1]} 48. Nxf5+ {[%clk
0:00:05.9]} 48... Kf7 {[%clk 0:00:05.4]} 49. Bb3+ {[%clk 0:00:06.3]} 49... Kf8
{[%clk 0:00:04.9]} 50. h6 {[%clk 0:00:04.4]} 50... Bxb2 {[%clk 0:00:05.4]} 51.
h7 {[%clk 0:00:04.6]} 51... Ng6 {[%clk 0:00:05.9]} 52. Ke2 {[%clk 0:00:03.4]}
52... a5 {[%clk 0:00:04.8]} 53. Kd2 {[%clk 0:00:03.6]} 53... b5 {[%clk
0:00:04.9]} 54. Kc2 {[%clk 0:00:04]} 54... Ba3 {[%clk 0:00:05.4]} 55. Be6 {[%clk
0:00:03.5]} 55... a4 {[%clk 0:00:04.8]} 56. Bd7 {[%clk 0:00:03.9]} 56... c5
{[%clk 0:00:03.1]} 57. dxc5 {[%clk 0:00:02.6]} 57... Bxc5 {[%clk 0:00:04]} 58.
Bxb5 {[%clk 0:00:02.7]} 58... Bxf2 {[%clk 0:00:04.3]} 59. Bxa4 {[%clk
0:00:02.8]} 59... Bc5 {[%clk 0:00:02.1]} 60. Bb3 {[%clk 0:00:03.1]} 60... Bb6
{[%clk 0:00:01.2]} 61. Kd3 {[%clk 0:00:03.5]} 61... Bd8 {[%clk 0:00:01.8]} 62.
Ke4 {[%clk 0:00:04.4]} 62... Bc7 {[%clk 0:00:02.4]} 63. Be6 {[%clk 0:00:04.7]}
63... Be5 {[%clk 0:00:02.9]} 64. Kd5 {[%clk 0:00:05.1]} 64... Bd4 {[%clk
0:00:01.8]} 65. Kxd4 {[%clk 0:00:04.7]} 65... Ke8 {[%clk 0:00:02.5]} 66. Ke4
{[%clk 0:00:04.9]} 66... Kf8 {[%clk 0:00:03.4]} 67. Bd5 {[%clk 0:00:05.2]} 67...
Ke8 {[%clk 0:00:04.3]} 68. Bc4 {[%clk 0:00:05.5]} 68... Kf8 {[%clk 0:00:05]} 69.
Ba2 {[%clk 0:00:06]} 69... Ke8 {[%clk 0:00:05.7]} 70. Bb1 {[%clk 0:00:06.9]}
70... Kf8 {[%clk 0:00:06.3]} 71. Bd3 {[%clk 0:00:07.5]} 71... Ke8 {[%clk
0:00:06.8]} 72. Bf1 {[%clk 0:00:08.4]} 72... Kf8 {[%clk 0:00:07.3]} 73. Kd5
{[%clk 0:00:09.3]} 73... Ke8 {[%clk 0:00:07.9]} 74. Ke6 {[%clk 0:00:08.7]} 74...
Kf8 {[%clk 0:00:08.2]} 75. Kxf6 {[%clk 0:00:09]} 75... Nf4 {[%clk 0:00:08.9]}
76. h8=Q# {[%clk 0:00:08.2]} 1-0

[Event "*** Titled Tuesday Blitz"]
[Site "Chess.com"]
[Date "2020.04.28"]
[Round "5"]
[White "Msb2"]
[Black "Durarbayli"]
[Result "1/2-1/2"]
[WhiteElo "3012"]
[BlackElo "2793"]
[TimeControl "180+1"]
[EndTime "10:57:09 PDT"]
[Termination "Game drawn by repetition"]

1. d4 {[%clk 0:03:00.9]} 1... Nf6 {[%clk 0:02:58.6]} 2. c4 {[%clk 0:03:01.5]}
2... e6 {[%clk 0:02:59]} 3. Nc3 {[%clk 0:03:01.8]} 3... Bb4 {[%clk 0:02:58.2]}
4. e3 {[%clk 0:03:01.8]} 4... O-O {[%clk 0:02:57.9]} 5. Bd2 {[%clk 0:03:01.9]}
5... c5 {[%clk 0:02:56]} 6. a3 {[%clk 0:03:01.5]} 6... Bxc3 {[%clk 0:02:53.2]}
7. Bxc3 {[%clk 0:03:02.4]} 7... cxd4 {[%clk 0:02:50.1]} 8. Qxd4 {[%clk
0:02:58.6]} 8... d5 {[%clk 0:02:46.7]} 9. Bd3 {[%clk 0:02:35.6]} 9... Nc6 {[%clk
0:02:19.5]} 10. Qh4 {[%clk 0:02:32.8]} 10... Ne4 {[%clk 0:02:00.5]} 11. Qxd8
{[%clk 0:02:10.3]} 11... Rxd8 {[%clk 0:02:01.4]} 12. Bxe4 {[%clk 0:02:10.7]}
12... dxe4 {[%clk 0:02:02]} 13. Ne2 {[%clk 0:02:10.8]} 13... e5 {[%clk
0:01:54.2]} 14. Ng3 {[%clk 0:01:24.1]} 14... Be6 {[%clk 0:01:51.1]} 15. Nxe4
{[%clk 0:01:11.1]} 15... Bxc4 {[%clk 0:01:50.5]} 16. f3 {[%clk 0:01:11.7]} 16...
b6 {[%clk 0:01:21.8]} 17. Kf2 {[%clk 0:01:00.8]} 17... f6 {[%clk 0:01:10.1]} 18.
Rac1 {[%clk 0:00:54.5]} 18... Bb3 {[%clk 0:01:00.3]} 19. Nd2 {[%clk 0:00:50.6]}
19... Be6 {[%clk 0:00:54.2]} 20. Rhd1 {[%clk 0:00:48.2]} 20... Ne7 {[%clk
0:00:42.8]} 21. e4 {[%clk 0:00:36.7]} 21... Nc6 {[%clk 0:00:38.7]} 22. Nf1
{[%clk 0:00:35.5]} 22... Bb3 {[%clk 0:00:37.7]} 23. Rxd8+ {[%clk 0:00:31.9]}
23... Rxd8 {[%clk 0:00:38.6]} 24. Nd2 {[%clk 0:00:30.9]} 24... Be6 {[%clk
0:00:36.7]} 25. Ke3 {[%clk 0:00:31]} 25... Kf7 {[%clk 0:00:33.4]} 26. b4 {[%clk
0:00:28.2]} 26... b5 {[%clk 0:00:17.4]} 27. Bb2 {[%clk 0:00:27]} 27... Rc8
{[%clk 0:00:18]} 28. Rc5 {[%clk 0:00:25.3]} 28... a6 {[%clk 0:00:18.3]} 29. g3
{[%clk 0:00:22.3]} 29... Ne7 {[%clk 0:00:15.9]} 30. Rxc8 {[%clk 0:00:22.4]}
30... Nxc8 {[%clk 0:00:16.8]} 31. f4 {[%clk 0:00:22.7]} 31... exf4+ {[%clk
0:00:16.6]} 32. gxf4 {[%clk 0:00:23.6]} 32... g6 {[%clk 0:00:16.6]} 33. Kd4
{[%clk 0:00:21.6]} 33... Nb6 {[%clk 0:00:13.2]} 34. Bc3 {[%clk 0:00:17.4]} 34...
Ke7 {[%clk 0:00:12]} 35. Kd3 {[%clk 0:00:13.3]} 35... Nc4 {[%clk 0:00:10.3]} 36.
Nb3 {[%clk 0:00:06.9]} 36... Nxa3 {[%clk 0:00:08.7]} 37. Nc5 {[%clk 0:00:07.4]}
37... Bc4+ {[%clk 0:00:08.4]} 38. Ke3 {[%clk 0:00:05.5]} 38... Nc2+ {[%clk
0:00:05.9]} 39. Kd2 {[%clk 0:00:05.7]} 39... Na3 {[%clk 0:00:04.9]} 40. Nxa6
{[%clk 0:00:04.9]} 40... Nb1+ {[%clk 0:00:04.6]} 41. Kc2 {[%clk 0:00:05]} 41...
Nxc3 {[%clk 0:00:04.3]} 42. Kxc3 {[%clk 0:00:05.9]} 42... Kd6 {[%clk 0:00:04.5]}
43. Kd4 {[%clk 0:00:06.3]} 43... Bf1 {[%clk 0:00:04.4]} 44. Nc5 {[%clk
0:00:06.1]} 44... h6 {[%clk 0:00:03.1]} 45. Nb7+ {[%clk 0:00:06.4]} 45... Kc6
{[%clk 0:00:02.9]} 46. Nc5 {[%clk 0:00:07]} 46... Kd6 {[%clk 0:00:03.4]} 47. h4
{[%clk 0:00:05]} 47... g5 {[%clk 0:00:03.2]} 48. fxg5 {[%clk 0:00:03.4]} 48...
fxg5 {[%clk 0:00:03.3]} 49. e5+ {[%clk 0:00:04]} 49... Ke7 {[%clk 0:00:03.4]}
50. hxg5 {[%clk 0:00:04.9]} 50... hxg5 {[%clk 0:00:04.3]} 51. Ne4 {[%clk
0:00:05.8]} 51... g4 {[%clk 0:00:03.7]} 52. Ng3 {[%clk 0:00:06.5]} 52... Bc4
{[%clk 0:00:03.3]} 53. Ke4 {[%clk 0:00:06.8]} 53... Ke6 {[%clk 0:00:03.8]} 54.
Kd4 {[%clk 0:00:06.8]} 54... Bb3 {[%clk 0:00:03.3]} 55. Ke4 {[%clk 0:00:07.2]}
55... Bc4 {[%clk 0:00:03.5]} 56. Nh5 {[%clk 0:00:07.5]} 56... Bd5+ {[%clk
0:00:03.4]} 57. Kd4 {[%clk 0:00:08]} 57... Bf3 {[%clk 0:00:03.7]} 58. Ng3 {[%clk
0:00:04.5]} 58... Bd5 {[%clk 0:00:02.3]} 59. Nh5 {[%clk 0:00:03.8]} 59... Bf3
{[%clk 0:00:02.2]} 60. Ng7+ {[%clk 0:00:04.5]} 60... Kf7 {[%clk 0:00:02.2]} 61.
Nf5 {[%clk 0:00:05.4]} 61... Ke6 {[%clk 0:00:03.1]} 62. Ng3 {[%clk 0:00:03.6]}
62... Bd5 {[%clk 0:00:02.7]} 63. Ne2 {[%clk 0:00:03.5]} 63... Bc4 {[%clk
0:00:02.8]} 64. Ng3 {[%clk 0:00:03.4]} 64... Bd5 {[%clk 0:00:02.1]} 1/2-1/2

[Event "*** Titled Tuesday Blitz"]
[Site "Chess.com"]
[Date "2020.04.28"]
[Round "5"]
[White "Poghosyan_Suren"]
[Black "garicradomir"]
[Result "0-1"]
[WhiteElo "2510"]
[BlackElo "2358"]
[TimeControl "180+1"]
[EndTime "10:57:16 PDT"]
[Termination "garicradomir won on time"]

1. e4 {[%clk 0:03:00.9]} 1... g6 {[%clk 0:02:52.6]} 2. d4 {[%clk 0:03:00.3]}
2... Nf6 {[%clk 0:02:52.8]} 3. Nc3 {[%clk 0:03:01.2]} 3... d5 {[%clk 0:02:52.3]}
4. e5 {[%clk 0:02:54.6]} 4... Ne4 {[%clk 0:02:52.4]} 5. Nge2 {[%clk 0:02:48.2]}
5... Bg7 {[%clk 0:02:37.8]} 6. Nxe4 {[%clk 0:02:45.6]} 6... dxe4 {[%clk
0:02:38.7]} 7. Ng3 {[%clk 0:02:39.8]} 7... c5 {[%clk 0:02:38.1]} 8. c3 {[%clk
0:02:37.3]} 8... cxd4 {[%clk 0:02:26]} 9. cxd4 {[%clk 0:02:38.2]} 9... Nc6
{[%clk 0:02:21.3]} 10. Be3 {[%clk 0:02:36]} 10... Qd5 {[%clk 0:02:18.6]} 11. Qd2
{[%clk 0:02:14]} 11... O-O {[%clk 0:02:11.9]} 12. Rc1 {[%clk 0:02:11.1]} 12...
Qxa2 {[%clk 0:01:33.6]} 13. Bc4 {[%clk 0:02:08.4]} 13... Qa5 {[%clk 0:01:32.7]}
14. Nxe4 {[%clk 0:02:04]} 14... Rd8 {[%clk 0:01:26.6]} 15. Ng5 {[%clk
0:01:58.2]} 15... Qxd2+ {[%clk 0:01:21.6]} 16. Bxd2 {[%clk 0:01:58.4]} 16... e6
{[%clk 0:01:18.3]} 17. Nxh7 {[%clk 0:01:27.8]} 17... Kxh7 {[%clk 0:01:11.9]} 18.
Be3 {[%clk 0:01:12.9]} 18... Nxd4 {[%clk 0:01:06.1]} 19. Rd1 {[%clk 0:00:57.1]}
19... Nc2+ {[%clk 0:01:03.8]} 20. Ke2 {[%clk 0:00:56.9]} 20... Rxd1 {[%clk
0:01:03.5]} 21. Rxd1 {[%clk 0:00:57.8]} 21... Nxe3 {[%clk 0:01:03.2]} 22. fxe3
{[%clk 0:00:58.7]} 22... b5 {[%clk 0:00:56.8]} 23. Bxb5 {[%clk 0:00:56.6]} 23...
Rb8 {[%clk 0:00:56.7]} 24. Bc6 {[%clk 0:00:53.9]} 24... Rxb2+ {[%clk 0:00:56.1]}
25. Ke1 {[%clk 0:00:52.5]} 25... Bxe5 {[%clk 0:00:55.4]} 26. Rd8 {[%clk
0:00:50.4]} 26... Ba6 {[%clk 0:00:50.3]} 27. Be8 {[%clk 0:00:47.4]} 27... Kg7
{[%clk 0:00:35]} 28. Rd7 {[%clk 0:00:46.3]} 28... Rb7 {[%clk 0:00:30.7]} 29. Rd8
{[%clk 0:00:46.1]} 29... Bxh2 {[%clk 0:00:28.3]} 30. Bc6 {[%clk 0:00:45.2]}
30... Rc7 {[%clk 0:00:26.3]} 31. Bf3 {[%clk 0:00:44.6]} 31... Bg3+ {[%clk
0:00:25.1]} 32. Kd2 {[%clk 0:00:44.2]} 32... Bh4 {[%clk 0:00:25.3]} 33. Rd6
{[%clk 0:00:41.9]} 33... Bb7 {[%clk 0:00:23]} 34. e4 {[%clk 0:00:42]} 34... Be7
{[%clk 0:00:21.1]} 35. Rd4 {[%clk 0:00:41.4]} 35... a5 {[%clk 0:00:20.2]} 36.
Ra4 {[%clk 0:00:37.1]} 36... Bb4+ {[%clk 0:00:19.6]} 37. Ke3 {[%clk 0:00:36.6]}
37... f5 {[%clk 0:00:19.1]} 38. exf5 {[%clk 0:00:31.7]} 38... Bxf3 {[%clk
0:00:18.9]} 39. fxe6 {[%clk 0:00:31.4]} 39... Bxg2 {[%clk 0:00:18.1]} 40. Kd4
{[%clk 0:00:28.9]} 40... Rc1 {[%clk 0:00:14.7]} 41. Ra2 {[%clk 0:00:27.1]} 41...
Bc6 {[%clk 0:00:14.4]} 42. Re2 {[%clk 0:00:25.9]} 42... Be8 {[%clk 0:00:14]} 43.
e7 {[%clk 0:00:26]} 43... a4 {[%clk 0:00:13.6]} 44. Kd5 {[%clk 0:00:17.5]} 44...
a3 {[%clk 0:00:13.7]} 45. Ke6 {[%clk 0:00:17.7]} 45... a2 {[%clk 0:00:12.7]} 46.
Rxa2 {[%clk 0:00:17.1]} 46... Bf7+ {[%clk 0:00:11.3]} 47. Ke5 {[%clk 0:00:17.2]}
47... Bxe7 {[%clk 0:00:10]} 48. Ra7 {[%clk 0:00:16.2]} 48... Bf6+ {[%clk
0:00:10.4]} 49. Kf4 {[%clk 0:00:15.2]} 49... Rc4+ {[%clk 0:00:10.3]} 50. Kg3
{[%clk 0:00:14.8]} 50... g5 {[%clk 0:00:10.7]} 51. Rb7 {[%clk 0:00:13.5]} 51...
Kg6 {[%clk 0:00:10.5]} 52. Rb6 {[%clk 0:00:13.3]} 52... Bd5 {[%clk 0:00:10.3]}
53. Ra6 {[%clk 0:00:12.9]} 53... Rc3+ {[%clk 0:00:10.4]} 54. Kf2 {[%clk
0:00:10.6]} 54... Kf5 {[%clk 0:00:10.1]} 55. Kg1 {[%clk 0:00:10.3]} 55... Bd4+
{[%clk 0:00:10]} 56. Kf1 {[%clk 0:00:09.8]} 56... Rc1+ {[%clk 0:00:09.7]} 57.
Ke2 {[%clk 0:00:09.7]} 57... Rc3 {[%clk 0:00:09.3]} 58. Ra5 {[%clk 0:00:08.2]}
58... Ke4 {[%clk 0:00:08.9]} 59. Kd2 {[%clk 0:00:07.3]} 59... Rc2+ {[%clk
0:00:08.8]} 60. Kd1 {[%clk 0:00:07.3]} 60... Rh2 {[%clk 0:00:08.3]} 61. Ra3
{[%clk 0:00:05]} 61... Bc4 {[%clk 0:00:07.9]} 62. Rg3 {[%clk 0:00:04.2]} 62...
Kf4 {[%clk 0:00:06.8]} 63. Ra3 {[%clk 0:00:03.6]} 63... g4 {[%clk 0:00:06.7]}
64. Ra4 {[%clk 0:00:01.9]} 64... Rh1+ {[%clk 0:00:06.6]} 65. Kd2 {[%clk
0:00:01.7]} 65... g3 {[%clk 0:00:05.3]} 0-1

[Event "*** Titled Tuesday Blitz"]
[Site "Chess.com"]
[Date "2020.04.28"]
[Round "5"]
[White "korbul"]
[Black "Eliwood44"]
[Result "1-0"]
[WhiteElo "2594"]
[BlackElo "2314"]
[TimeControl "180+1"]
[EndTime "10:57:16 PDT"]
[Termination "korbul won on time"]

1. d4 {[%clk 0:03:00.9]} 1... Nf6 {[%clk 0:02:58.8]} 2. c4 {[%clk 0:03:00.7]}
2... e6 {[%clk 0:02:58.6]} 3. Nf3 {[%clk 0:03:00.1]} 3... d5 {[%clk 0:02:58.6]}
4. Nc3 {[%clk 0:02:59.1]} 4... Be7 {[%clk 0:02:57.3]} 5. Bf4 {[%clk 0:02:58.4]}
5... O-O {[%clk 0:02:56.1]} 6. e3 {[%clk 0:02:58.5]} 6... b6 {[%clk 0:02:54.4]}
7. cxd5 {[%clk 0:02:57.6]} 7... Nxd5 {[%clk 0:02:54.1]} 8. Bd3 {[%clk
0:02:56.6]} 8... Nxf4 {[%clk 0:02:45.6]} 9. exf4 {[%clk 0:02:57.5]} 9... Bb7
{[%clk 0:02:45.7]} 10. O-O {[%clk 0:02:56.8]} 10... Nd7 {[%clk 0:02:45.5]} 11.
Re1 {[%clk 0:02:56.1]} 11... c5 {[%clk 0:02:42.3]} 12. Be4 {[%clk 0:02:53.8]}
12... Bxe4 {[%clk 0:02:40.9]} 13. Nxe4 {[%clk 0:02:52.9]} 13... Nf6 {[%clk
0:02:38.6]} 14. Nxf6+ {[%clk 0:02:48.4]} 14... Bxf6 {[%clk 0:02:38.4]} 15. dxc5
{[%clk 0:02:48.5]} 15... bxc5 {[%clk 0:02:33.7]} 16. Qc2 {[%clk 0:02:46.9]}
16... Rb8 {[%clk 0:02:32]} 17. Rab1 {[%clk 0:02:45.6]} 17... Qa5 {[%clk
0:02:21.3]} 18. b3 {[%clk 0:02:44.2]} 18... h6 {[%clk 0:02:15.4]} 19. g3 {[%clk
0:02:43.3]} 19... Rfd8 {[%clk 0:02:10.7]} 20. Red1 {[%clk 0:02:38.6]} 20... Rd5
{[%clk 0:02:08.5]} 21. Kg2 {[%clk 0:02:28.3]} 21... Rbd8 {[%clk 0:02:06.7]} 22.
Rxd5 {[%clk 0:02:21.6]} 22... exd5 {[%clk 0:02:06.8]} 23. Rc1 {[%clk 0:02:13.4]}
23... d4 {[%clk 0:02:04.2]} 24. Rd1 {[%clk 0:02:06.9]} 24... Qb5 {[%clk
0:01:51.2]} 25. Nd2 {[%clk 0:01:57.4]} 25... d3 {[%clk 0:01:43.5]} 26. Qc4
{[%clk 0:01:54.9]} 26... Qc6+ {[%clk 0:01:43.8]} 27. Nf3 {[%clk 0:01:41.1]}
27... Rd4 {[%clk 0:01:34.1]} 28. Qc1 {[%clk 0:01:40.4]} 28... c4 {[%clk
0:01:31.1]} 29. bxc4 {[%clk 0:01:36.9]} 29... Rxc4 {[%clk 0:01:31.4]} 30. Qe3
{[%clk 0:01:35.3]} 30... Rc2 {[%clk 0:01:23.5]} 31. Rxd3 {[%clk 0:00:54.3]}
31... Rxa2 {[%clk 0:01:18.9]} 32. g4 {[%clk 0:00:54.3]} 32... Bh4 {[%clk
0:01:06]} 33. Kh3 {[%clk 0:00:22]} 33... Bxf2 {[%clk 0:00:49.2]} 34. Rd8+ {[%clk
0:00:20.1]} 34... Kh7 {[%clk 0:00:49.1]} 35. Qd3+ {[%clk 0:00:20.1]} 35... g6
{[%clk 0:00:48.8]} 36. Rd7 {[%clk 0:00:16.2]} 36... Qe6 {[%clk 0:00:34.4]} 37.
Ne5 {[%clk 0:00:08.2]} 37... Bb6 {[%clk 0:00:09.7]} 38. Rxf7+ {[%clk 0:00:07.9]}
38... Kg8 {[%clk 0:00:09.2]} 39. Rd7 {[%clk 0:00:02.3]} 39... Rb2 {[%clk
0:00:07.6]} 40. Qxg6+ {[%clk 0:00:02.2]} 40... Qxg6 {[%clk 0:00:07.1]} 41. Nxg6
{[%clk 0:00:03.1]} 41... Rb3+ {[%clk 0:00:07.5]} 42. Kh4 {[%clk 0:00:04]} 42...
Rb2 {[%clk 0:00:07.4]} 43. g5 {[%clk 0:00:03.7]} 43... hxg5+ {[%clk 0:00:06.6]}
44. Kg4 {[%clk 0:00:04.6]} 44... Rg2+ {[%clk 0:00:06.5]} 45. Kf5 {[%clk
0:00:05.2]} 45... gxf4 {[%clk 0:00:05.4]} 46. Nxf4 {[%clk 0:00:05.3]} 46... Rxh2
{[%clk 0:00:05.4]} 47. Ne6 {[%clk 0:00:06.2]} 47... Rf2+ {[%clk 0:00:05.4]} 48.
Kg6 {[%clk 0:00:06.4]} 48... Rg2+ {[%clk 0:00:05.4]} 49. Ng5 {[%clk 0:00:07.3]}
49... Bc5 {[%clk 0:00:04.9]} 50. Rd8+ {[%clk 0:00:07]} 50... Bf8 {[%clk
0:00:05.1]} 51. Kf6 {[%clk 0:00:07.9]} 51... Rxg5 {[%clk 0:00:04.5]} 52. Kxg5
{[%clk 0:00:07.8]} 52... Kf7 {[%clk 0:00:05]} 53. Rd7+ {[%clk 0:00:08.1]} 53...
Ke6 {[%clk 0:00:03.4]} 54. Rxa7 {[%clk 0:00:06.7]} 54... Bd6 {[%clk 0:00:03.9]}
55. Kg6 {[%clk 0:00:07.5]} 55... Kd5 {[%clk 0:00:03.6]} 56. Ra6 {[%clk
0:00:08.4]} 56... Be5 {[%clk 0:00:03.5]} 57. Kg5 {[%clk 0:00:09.3]} 57... Bd6
{[%clk 0:00:04]} 58. Kg4 {[%clk 0:00:10.2]} 58... Ke6 {[%clk 0:00:04]} 59. Ra5
{[%clk 0:00:11.1]} 59... Be5 {[%clk 0:00:02.9]} 60. Ra6+ {[%clk 0:00:10.5]}
60... Kd5 {[%clk 0:00:02.8]} 61. Kf5 {[%clk 0:00:11.4]} 61... Bd6 {[%clk
0:00:03]} 62. Ra5+ {[%clk 0:00:11.4]} 62... Bc5 {[%clk 0:00:03.4]} 63. Rb5
{[%clk 0:00:11.9]} 63... Kc4 {[%clk 0:00:03.3]} 64. Rb8 {[%clk 0:00:12.8]} 64...
Kd5 {[%clk 0:00:03.6]} 65. Rc8 {[%clk 0:00:12.8]} 65... Bb4 {[%clk 0:00:02.7]}
66. Rd8+ {[%clk 0:00:12.2]} 66... Bd6 {[%clk 0:00:02.8]} 67. Rd7 {[%clk
0:00:12.6]} 67... Kc6 {[%clk 0:00:02.6]} 68. Ke6 {[%clk 0:00:13.5]} 68... Bc5
{[%clk 0:00:02.3]} 69. Rd1 {[%clk 0:00:12.9]} 69... Kb5 {[%clk 0:00:02.4]} 70.
Kd5 {[%clk 0:00:12.1]} 70... Bb6 {[%clk 0:00:01.7]} 71. Rb1+ {[%clk 0:00:11.8]}
71... Ka6 {[%clk 0:00:01.5]} 72. Kc6 {[%clk 0:00:11.7]} 1-0